fUST/lending_fUST_20240726
["ID","MTS","AMOUNT","RATE_DAILY","PERIOD"]
[333237541,1721963441071,-350.76287347,0.00013698,2]
[333237543,1721963441082,-500.0,0.00013698,2]
[333237545,1721963441092,-500.0,0.00013698,2]
[333237548,1721963441105,-500.0,0.00013698,2]
[333237550,1721963441115,-500.58453657,0.00013698,2]
[333237552,1721963441126,-500.0,0.00013698,2]
[333237554,1721963441136,-500.0,0.00013698,2]
[333237556,1721963441146,-500.0,0.00013698,2]
[333237558,1721963441156,-500.0,0.00013698,2]
[333237560,1721963441168,-1140.16,0.00013698,2]
[333237562,1721963441178,-500.0,0.00013698,2]
[333237564,1721963441189,-500.0,0.00013698,2]
[333237567,1721963441201,-500.0,0.00013698,2]
[333237569,1721963441213,-500.0,0.00013698,2]
[333237571,1721963441225,-500.0,0.00013698,2]
[333237573,1721963441236,-193.51712386,0.00013698,2]
[333237575,1721963441247,-506.72955264,0.00013698,2]
[333237577,1721963441257,-500.0,0.00013698,2]
[333237579,1721963441266,-500.0,0.00013698,2]
[333237581,1721963441276,-500.0,0.00013698,2]
[333237583,1721963441286,-500.0,0.00013698,2]
[333237585,1721963441296,-500.0,0.00013698,2]
[333237587,1721963441306,-500.0,0.00013698,2]
[333237589,1721963441315,-155.816202,0.00013698,2]
[333237591,1721963441325,-500.0,0.00013698,2]
[333237593,1721963441334,-1165.66,0.00013698,2]
[333237595,1721963441344,-500.0,0.00013698,2]
[333237597,1721963441353,-500.0,0.00013698,2]
[333237599,1721963441362,-504.3600509,0.00013698,2]
[333237601,1721963441371,-500.0,0.00013698,2]
[333237603,1721963441382,-500.0,0.00013698,2]
[333237605,1721963441405,-1809.56,0.00013698,2]
[333237607,1721963441416,-500.0,0.00013698,2]
[333237609,1721963441427,-500.8979793,0.00013698,2]
[333237612,1721963441442,-500.0,0.00013698,2]
[333237614,1721963441453,-500.0,0.00013698,2]
[333237616,1721963441466,-500.0,0.00013698,2]
[333237618,1721963441477,-505.76600272,0.00013698,2]
[333237620,1721963441487,-500.0,0.00013698,2]
[333237622,1721963441498,-500.0,0.00013698,2]
[333237625,1721963441509,-500.0,0.00013698,2]
[333237627,1721963441521,-502.47920055,0.00013698,2]
[333237629,1721963441531,-502.99766997,0.00013698,2]
[333237631,1721963441541,-503.19222684,0.00013698,2]
[333237633,1721963441552,-500.0,0.00013698,2]
[333237635,1721963441563,-483.65568664,0.00013698,2]
[333237638,1721963441575,-989.23,0.00013698,2]
[333237640,1721963441585,-511.33821148,0.00013698,2]
[333237642,1721963441596,-522.08,0.00013698,2]
[333237644,1721963441607,-635.04130408,0.00013698,2]
[333237646,1721963441619,-500.0,0.00013698,2]
[333237648,1721963441629,-500.0,0.00013698,2]
[333237650,1721963441639,-500.0,0.00013698,2]
[333237652,1721963441649,-515.31335447,0.00013698,2]
[333237654,1721963441659,-501.42190448,0.00013698,2]
[333237656,1721963441669,-500.0,0.00013698,2]
[333237658,1721963441681,-510.76,0.00013698,2]
[333237661,1721963441693,-500.0,0.00013698,2]
[333237663,1721963441705,-769.2,0.00013698,2]
[333237665,1721963441715,-500.0,0.00013698,2]
[333237667,1721963441726,-485.61762605,0.00013698,2]
[333237669,1721963441737,-362.66853865,0.00013698,2]
[333237671,1721963441748,-500.0,0.00013698,2]
[333237673,1721963441758,-500.0,0.00013698,2]
[333237676,1721963441769,-631.29,0.00013698,2]
[333237678,1721963441781,-824.49,0.00013698,2]
[333237680,1721963441792,-301.067665,0.00013698,2]
[333237682,1721963441803,-500.0,0.00013698,2]
[333237684,1721963441814,-301.067665,0.00013698,2]
[333237687,1721963441827,-504.02751053,0.00013698,2]
[333237689,1721963441837,-500.0,0.00013698,2]
[333237691,1721963441848,-502.8022064,0.00013698,2]
[333237693,1721963441859,-500.0,0.00013698,2]
[333237695,1721963441869,-500.0,0.00013698,2]
[333237697,1721963441881,-502.67668242,0.00013698,2]
[333237699,1721963441904,-500.0,0.00013698,2]
[333237701,1721963441914,-501.17139742,0.00013698,2]
[333237703,1721963441926,-500.0,0.00013698,2]
[333237704,1721963441937,-500.0,0.00013698,2]
[333237707,1721963441948,-501.60274309,0.00013698,2]
[333237709,1721963441959,-151.0,0.00013698,2]
[333237711,1721963441974,-500.0,0.00013698,2]
[333237713,1721963441984,-500.0,0.00013698,2]
[333237715,1721963441995,-500.0,0.00013698,2]
[333237717,1721963442007,-151.0,0.00013698,2]
[333237719,1721963442019,-503.44337496,0.00013698,2]
[333237721,1721963442030,-1093.92,0.00013698,2]
[333237723,1721963442041,-500.0,0.00013698,2]
[333237726,1721963442052,-500.0,0.00013698,2]
[333237728,1721963442063,-500.0,0.00013698,2]
[333237730,1721963442075,-380.13474165,0.00013698,2]
[333237732,1721963442086,-500.0,0.00013698,2]
[333237734,1721963442096,-504.09793732,0.00013698,2]
[333237736,1721963442107,-500.0,0.00013698,2]
[333237738,1721963442117,-500.0,0.00013698,2]
[333237740,1721963442129,-697.73,0.00013698,2]
[333237742,1721963442140,-519.77707225,0.00013698,2]
[333237744,1721963442152,-503.26300799,0.00013698,2]
[333237746,1721963442163,-511.72464627,0.00013698,2]
[333237749,1721963442174,-500.0,0.00013698,2]
[333237751,1721963442184,-457.54401741,0.00013698,2]
[333237753,1721963442194,-500.0,0.00013698,2]
[333237755,1721963442206,-501.4892621,0.00013698,2]
[333237757,1721963442217,-500.0,0.00013698,2]
[333237759,1721963442229,-500.0,0.00013698,2]
[333237761,1721963442240,-1162.93,0.00013698,2]
[333237763,1721963442250,-500.0,0.00013698,2]
[333237780,1721963442413,-156.534773,0.00013698,2]
[333237782,1721963442424,-500.0,0.00013698,2]
[333237784,1721963442435,-500.63549699,0.00013698,2]
[333237786,1721963442447,-156.534773,0.00013698,2]
[333237788,1721963442457,-951.78,0.00013698,2]
[333237790,1721963442470,-500.0,0.00013698,2]
[333237793,1721963442481,-651.52,0.00013698,2]
[333237795,1721963442493,-500.0,0.00013698,2]
[333237797,1721963442505,-500.0,0.00013698,2]
[333237799,1721963442515,-500.0,0.00013698,2]
[333237801,1721963442527,-726.41,0.00013698,2]
[333237803,1721963442537,-506.40701166,0.00013698,2]
[333237805,1721963442547,-500.79460399,0.00013698,2]
[333237807,1721963442558,-500.0,0.00013698,2]
[333237809,1721963442569,-151.768272,0.00013698,2]
[333237811,1721963442580,-500.0,0.00013698,2]
[333237813,1721963442591,-500.0,0.00013698,2]
[333237815,1721963442601,-629.81,0.00013698,2]
[333237818,1721963442612,-500.0,0.00013698,2]
[333237820,1721963442625,-1197.1,0.00013698,2]
[333237822,1721963442640,-500.0,0.00013698,2]
[333237824,1721963442650,-500.0,0.00013698,2]
[333237826,1721963442660,-502.5900231,0.00013698,2]
[333237828,1721963442670,-500.0,0.00013698,2]
[333237830,1721963442679,-431.51282812,0.00013698,2]
[333237832,1721963442689,-500.0,0.00013698,2]
[333237834,1721963442699,-500.0,0.00013698,2]
[333237836,1721963442709,-500.0,0.00013698,2]
[333237839,1721963442719,-500.0,0.00013698,2]
[333237842,1721963442729,-500.0,0.00013698,2]
[333237844,1721963442740,-500.0,0.00013698,2]
[333237847,1721963442751,-567.41,0.00013698,2]
[333237849,1721963442761,-845.63,0.00013698,2]
[333237851,1721963442770,-500.0,0.00013698,2]
[333237853,1721963442780,-500.0,0.00013698,2]
[333237855,1721963442791,-500.0,0.00013698,2]
[333237857,1721963442801,-500.0,0.00013698,2]
[333237859,1721963442811,-487.557975,0.00013698,2]
[333237861,1721963442820,-500.0,0.00013698,2]
[333237863,1721963442830,-322.490081,0.00013698,2]
[333237865,1721963442841,-487.557975,0.00013698,2]
[333237867,1721963442851,-500.0,0.00013698,2]
[333237869,1721963442860,-322.490081,0.00013698,2]
[333237871,1721963442870,-500.0,0.00013698,2]
[333237873,1721963442883,-1076.02,0.00013698,2]
[333237875,1721963442893,-724.44,0.00013698,2]
[333237877,1721963442902,-923.91,0.00013698,2]
[333237879,1721963442912,-500.0,0.00013698,2]
[333237881,1721963442922,-500.0,0.00013698,2]
[333237883,1721963442932,-503.68964469,0.00013698,2]
[333237891,1721963442941,-505.35890247,0.00013698,2]
[333237898,1721963442951,-1279.74,0.00013698,2]
[333237903,1721963442962,-917.6,0.00013698,2]
[333237909,1721963442974,-503.83473535,0.00013698,2]
[333237915,1721963442984,-519.79005777,0.00013698,2]
[333237919,1721963442994,-500.0,0.00013698,2]
[333237924,1721963443004,-557.75,0.00013698,2]
[333237929,1721963443014,-748.08,0.00013698,2]
[333237931,1721963443025,-500.0,0.00013698,2]
[333237932,1721963443034,-184.80927451,0.00013698,2]
[333237933,1721963443043,-500.0,0.00013698,2]
[333237935,1721963443054,-500.0,0.00013698,2]
[333237937,1721963443064,-500.0,0.00013698,2]
[333237939,1721963443074,-500.0,0.00013698,2]
[333237943,1721963443083,-500.0,0.00013698,2]
[333237944,1721963443093,-500.0,0.00013698,2]
[333237946,1721963443103,-500.0,0.00013698,2]
[333237948,1721963443112,-500.0,0.00013698,2]
[333237949,1721963443122,-500.0,0.00013698,2]
[333237950,1721963443132,-500.0,0.00013698,2]
[333237951,1721963443142,-151.0,0.00013698,2]
[333237952,1721963443151,-504.78094596,0.00013698,2]
[333237953,1721963443160,-1414.01,0.00013698,2]
[333237954,1721963443169,-561.886476,0.00013698,2]
[333237956,1721963443178,-504.14963923,0.00013698,2]
[333237958,1721963443187,-500.0,0.00013698,2]
[333237960,1721963443197,-500.0,0.00013698,2]
[333237961,1721963443206,-561.886476,0.00013698,2]
[333237963,1721963443216,-1349.148235,0.00013698,2]
[333237965,1721963443226,-1349.148235,0.00013698,2]
[333237967,1721963443236,-1428.056274,0.00013698,2]
[333237970,1721963443246,-502.36529503,0.00013698,2]
[333237972,1721963443256,-1428.056274,0.00013698,2]
[333237974,1721963443266,-500.0,0.00013698,2]
[333237976,1721963443275,-654.54,0.00013698,2]
[333237978,1721963443285,-500.0,0.00013698,2]
[333237980,1721963443295,-504.45439226,0.00013698,2]
[333237982,1721963443305,-500.0,0.00013698,2]
[333237984,1721963443314,-500.0,0.00013698,2]
[333237986,1721963443324,-500.0,0.00013698,2]
[333237988,1721963443334,-500.0,0.00013698,2]
[333237990,1721963443344,-897.89,0.00013698,2]
[333237992,1721963443354,-505.30884357,0.00013698,2]
[333237994,1721963443363,-500.0,0.00013698,2]
[333237996,1721963443374,-500.0,0.00013698,2]
[333237998,1721963443386,-500.0,0.00013698,2]
[333238000,1721963443396,-594.95,0.00013698,2]
[333238002,1721963443406,-500.0,0.00013698,2]
[333238004,1721963443416,-889.3,0.00013698,2]
[333238006,1721963443426,-500.0,0.00013698,2]
[333238008,1721963443436,-740.14,0.00013698,2]
[333238010,1721963443448,-151.0,0.00013698,2]
[333238012,1721963443458,-501.5015202,0.00013698,2]
[333238014,1721963443469,-1382.4,0.00013698,2]
[333238016,1721963443479,-500.0,0.00013698,2]
[333238018,1721963443488,-509.73623295,0.00013698,2]
[333238021,1721963443499,-500.0,0.00013698,2]
[333238023,1721963443508,-500.0,0.00013698,2]
[333238025,1721963443519,-500.0,0.00013698,2]
[333238027,1721963443528,-640.54637123,0.00013698,2]
[333238029,1721963443539,-500.0,0.00013698,2]
[333238031,1721963443552,-509.04757717,0.00013698,2]
[333238033,1721963443563,-500.0,0.00013698,2]
[333238036,1721963443574,-500.0,0.00013698,2]
[333238038,1721963443585,-550.54050196,0.00013698,2]
[333238040,1721963443597,-500.0,0.00013698,2]
[333238042,1721963443607,-500.0,0.00013698,2]
[333238044,1721963443617,-500.0,0.00013698,2]
[333238046,1721963443628,-500.0,0.00013698,2]
[333238049,1721963443640,-500.0,0.00013698,2]
[333238051,1721963443651,-500.0,0.00013698,2]
[333238053,1721963443663,-500.0,0.00013698,2]
[333238056,1721963443674,-500.0,0.00013698,2]
[333238060,1721963443685,-500.0,0.00013698,2]
[333238063,1721963443695,-500.0,0.00013698,2]
[333238066,1721963443706,-660.93,0.00013698,2]
[333238068,1721963443718,-500.0,0.00013698,2]
[333238070,1721963443728,-1137.1,0.00013698,2]
[333238072,1721963443738,-500.0,0.00013698,2]
[333238074,1721963443748,-500.0,0.00013698,2]
[333238076,1721963443758,-500.0,0.00013698,2]
[333238078,1721963443768,-502.95555815,0.00013698,2]
[333238080,1721963443777,-500.0,0.00013698,2]
[333238082,1721963443788,-500.0,0.00013698,2]
[333238084,1721963443799,-500.0,0.00013698,2]
[333238086,1721963443811,-1165.37,0.00013698,2]
[333238088,1721963443822,-500.0,0.00013698,2]
[333238090,1721963443832,-1574.82,0.00013698,2]
[333238093,1721963443843,-500.0,0.00013698,2]
[333238095,1721963443855,-500.0,0.00013698,2]
[333238097,1721963443865,-500.0,0.00013698,2]
[333238099,1721963443875,-1272.79,0.00013698,2]
[333238101,1721963443889,-500.0,0.00013698,2]
[333238104,1721963443900,-842.18,0.00013698,2]
[333238106,1721963443912,-505.47502758,0.00013698,2]
[333238108,1721963443922,-2839.49,0.00013698,2]
[333238110,1721963443932,-151.0,0.00013698,2]
[333238112,1721963443942,-154.567772,0.00013698,2]
[333238114,1721963443951,-3111.58,0.00013698,2]
[333238116,1721963443961,-659.16,0.00013698,2]
[333238118,1721963443975,-151.0,0.00013698,2]
[333238120,1721963443985,-153.230769,0.00013698,2]
[333238122,1721963443995,-670.5,0.00013698,2]
[333238124,1721963444005,-500.0,0.00013698,2]
[333238126,1721963444015,-760.76,0.00013698,2]
[333238128,1721963444026,-502.48752705,0.00013698,2]
[333238130,1721963444035,-6474.4,0.00013698,2]
[333238132,1721963444046,-1338.08,0.00013698,2]
[333238134,1721963444055,-9293.81,0.00013698,2]
[333238136,1721963444065,-9293.81,0.00013698,2]
[333238139,1721963444075,-1083.92,0.00013698,2]
[333238141,1721963444087,-9293.81,0.00013698,2]
[333238143,1721963444098,-9293.81,0.00013698,2]
[333238145,1721963444109,-4812.51754947,0.00013698,2]
[333238149,1721963444134,-4481.29245053,0.00013698,2]
[333238151,1721963444145,-9293.81,0.00013698,2]
[333238153,1721963444155,-9293.81,0.00013698,2]
[333238155,1721963444166,-9293.81,0.00013698,2]
[333238157,1721963444177,-9293.81,0.00013698,2]
[333238160,1721963444189,-9293.81,0.00013698,2]
[333238162,1721963444200,-908.98,0.00013698,2]
[333238163,1721963444211,-9293.81,0.00013698,2]
[333238165,1721963444222,-503.636417,0.00013698,2]
[333238167,1721963444232,-7875.33273615,0.00013698,2]
[333238170,1721963444245,-1418.47726385,0.00013698,2]
[333238172,1721963444255,-9293.81,0.00013698,2]
[333238174,1721963444265,-9293.81,0.00013698,2]
[333238176,1721963444276,-9293.81,0.00013698,2]
[333238178,1721963444287,-4071.20336954,0.00013698,2]
[333238181,1721963444301,-5222.60663046,0.00013698,2]
[333238183,1721963444312,-9121.47975428,0.00013698,2]
[333238196,1721963444762,-172.33024572,0.00013698,2]
[333238197,1721963444771,-9293.81,0.00013698,2]
[333238198,1721963444781,-9293.81,0.00013698,2]
[333238199,1721963444791,-9293.81,0.00013698,2]
[333238200,1721963444800,-9293.81,0.00013698,2]
[333238201,1721963444810,-500.0,0.00013698,2]
[333238202,1721963444819,-9293.81,0.00013698,2]
[333238203,1721963444829,-500.0,0.00013698,2]
[333238204,1721963444840,-9293.81,0.00013698,2]
[333238205,1721963444850,-1634.95,0.00013698,2]
[333238206,1721963444860,-9293.87823409,0.00013698,2]
[333238207,1721963444869,-500.0,0.00013698,2]
[333238208,1721963444879,-500.0,0.00013698,2]
[333238209,1721963444890,-500.0,0.00013698,2]
[333238210,1721963444899,-187.88288766,0.00013698,2]
[333238211,1721963444909,-513.6205063,0.00013698,2]
[333238212,1721963444919,-500.0,0.00013698,2]
[333238213,1721963444928,-766.26,0.00013698,2]
[333238214,1721963444938,-776.73,0.00013698,2]
[333238215,1721963444948,-175.49974806,0.00013698,2]
[333238216,1721963444958,-500.0,0.00013698,2]
[333238217,1721963445016,-500.0,0.00013698,2]
[333238218,1721963445026,-500.0,0.00013698,2]
[333238219,1721963445036,-464.01618759,0.00013698,2]
[333238220,1721963445047,-505.46659815,0.00013698,2]
[333238221,1721963445056,-500.0,0.00013698,2]
[333238222,1721963445066,-502.81940615,0.00013698,2]
[333238223,1721963445075,-507.53292069,0.00013698,2]
[333238224,1721963445085,-501.45064022,0.00013698,2]
[333238225,1721963445094,-937.508423,0.00013698,2]
[333238226,1721963445103,-937.508423,0.00013698,2]
[333238227,1721963445113,-937.508423,0.00013698,2]
[333238228,1721963445122,-2357.35,0.00013698,2]
[333238229,1721963445132,-511.72927067,0.00013698,2]
[333238230,1721963445142,-937.508423,0.00013698,2]
[333238231,1721963445151,-937.508423,0.00013698,2]
[333238232,1721963445162,-509.51,0.00013698,2]
[333238233,1721963445172,-515.00680125,0.00013698,2]
[333238234,1721963445181,-937.508423,0.00013698,2]
[333238235,1721963445191,-500.0,0.00013698,2]
[333238236,1721963445200,-500.0,0.00013698,2]
[333238237,1721963445210,-1362.6,0.00013698,2]
[333238238,1721963445219,-500.0,0.00013698,2]
[333238239,1721963445229,-428.80647871,0.00013698,2]
[333238240,1721963445238,-501.55009197,0.00013698,2]
[333238241,1721963445247,-500.0,0.00013698,2]
[333238242,1721963445256,-500.0,0.00013698,2]
[333238243,1721963445266,-574.02,0.00013698,2]
[333238244,1721963445275,-500.0,0.00013698,2]
[333238245,1721963445285,-500.0,0.00013698,2]
[333238246,1721963445294,-500.0,0.00013698,2]
[333238247,1721963445304,-804.06,0.00013698,2]
[333238248,1721963445314,-1369.49,0.00013698,2]
[333238249,1721963445324,-500.0,0.00013698,2]
[333238250,1721963445333,-500.0,0.00013698,2]
[333238251,1721963445343,-500.0,0.00013698,2]
[333238252,1721963445352,-500.0,0.00013698,2]
[333238253,1721963445361,-804.07,0.00013698,2]
[333238254,1721963445370,-500.0,0.00013698,2]
[333238255,1721963445379,-214.875887,0.00013698,2]
[333238256,1721963445390,-500.0,0.00013698,2]
[333238257,1721963445399,-214.875887,0.00013698,2]
[333238258,1721963445409,-214.875887,0.00013698,2]
[333238259,1721963445418,-1280.05,0.00013698,2]
[333238260,1721963445429,-500.0,0.00013698,2]
[333238261,1721963445439,-214.875887,0.00013698,2]
[333238262,1721963445449,-214.875887,0.00013698,2]
[333238263,1721963445459,-214.875887,0.00013698,2]
[333238264,1721963445468,-500.0,0.00013698,2]
[333238265,1721963445477,-510.86759523,0.00013698,2]
[333238266,1721963445486,-578.06,0.00013698,2]
[333238267,1721963445496,-976.12,0.00013698,2]
[333238268,1721963445505,-500.0,0.00013698,2]
[333238269,1721963445514,-1228.84,0.00013698,2]
[333238270,1721963445524,-2193.74,0.00013698,2]
[333238271,1721963445533,-500.0,0.00013698,2]
[333238272,1721963445543,-1269.4,0.00013698,2]
[333238273,1721963445553,-513.23115347,0.00013698,2]
[333238274,1721963445562,-513.17162137,0.00013698,2]
[333238275,1721963445571,-500.0,0.00013698,2]
[333238276,1721963445580,-6841.19,0.00013698,2]
[333238277,1721963445590,-500.0,0.00013698,2]
[333238278,1721963445599,-500.0,0.00013698,2]
[333238279,1721963445610,-737.42,0.00013698,2]
[333238280,1721963445620,-151.0,0.00013698,2]
[333238281,1721963445629,-151.0,0.00013698,2]
[333238282,1721963445639,-151.0,0.00013698,2]
[333238283,1721963445648,-500.0,0.00013698,2]
[333238284,1721963445658,-151.0,0.00013698,2]
[333238285,1721963445667,-500.0,0.00013698,2]
[333238286,1721963445677,-1173.52,0.00013698,2]
[333238287,1721963445687,-500.0,0.00013698,2]
[333238288,1721963445696,-523.811806,0.00013698,2]
[333238289,1721963445705,-1733.3,0.00013698,2]
[333238290,1721963445714,-523.811806,0.00013698,2]
[333238291,1721963445724,-501.08227391,0.00013698,2]
[333238292,1721963445733,-523.811806,0.00013698,2]
[333238293,1721963445742,-626.11,0.00013698,2]
[333238294,1721963445751,-500.0,0.00013698,2]
[333238295,1721963445760,-523.811806,0.00013698,2]
[333238296,1721963445769,-523.811806,0.00013698,2]
[333238297,1721963445778,-507.93652999,0.00013698,2]
[333238298,1721963445787,-523.811806,0.00013698,2]
[333238299,1721963445797,-500.0,0.00013698,2]
[333238300,1721963445806,-500.0,0.00013698,2]
[333238301,1721963445815,-767.68,0.00013698,2]
[333238302,1721963445825,-500.0,0.00013698,2]
[333238303,1721963445834,-500.0,0.00013698,2]
[333238304,1721963445844,-1234.17,0.00013698,2]
[333238305,1721963445853,-508.08730958,0.00013698,2]
[333238306,1721963445862,-500.0,0.00013698,2]
[333238307,1721963445871,-500.0,0.00013698,2]
[333238308,1721963445881,-500.0,0.00013698,2]
[333238309,1721963445892,-500.0,0.00013698,2]
[333238310,1721963445901,-500.0,0.00013698,2]
[333238311,1721963445910,-788.22,0.00013698,2]
[333238312,1721963445920,-500.0,0.00013698,2]
[333238313,1721963445929,-500.0,0.00013698,2]
[333238314,1721963445939,-7835.74,0.00013698,2]
[333238315,1721963445949,-2455.85,0.00013698,2]
[333238316,1721963445958,-572.37,0.00013698,2]
[333238317,1721963445970,-500.0,0.00013698,2]
[333238318,1721963445981,-544.53,0.00013698,2]
[333238319,1721963445991,-325.32967224,0.00013698,2]
[333238320,1721963446001,-500.0,0.00013698,2]
[333238321,1721963446010,-3318.86,0.00013698,2]
[333238322,1721963446019,-505.31951478,0.00013698,2]
[333238323,1721963446028,-1128.85,0.00013698,2]
[333238324,1721963446038,-4398.22,0.00013698,2]
[333238325,1721963446048,-1174.13,0.00013698,2]
[333238326,1721963446058,-500.0,0.00013698,2]
[333238327,1721963446067,-758.75,0.00013698,2]
[333238328,1721963446077,-502.45948029,0.00013698,2]
[333238329,1721963446088,-500.0,0.00013698,2]
[333238330,1721963446101,-1681.25,0.00013698,2]
[333238331,1721963446112,-500.0,0.00013698,2]
[333238332,1721963446123,-1394.49,0.00013698,2]
[333238333,1721963446135,-500.0,0.00013698,2]
[333238334,1721963446145,-500.0,0.00013698,2]
[333238335,1721963446154,-500.0,0.00013698,2]
[333238336,1721963446165,-500.0,0.00013698,2]
[333238337,1721963446176,-281.50677243,0.00013698,2]
[333238338,1721963446185,-276.03693164,0.00013698,2]
[333238339,1721963446196,-551.92417396,0.00013698,2]
[333238340,1721963446207,-500.0,0.00013698,2]
[333238341,1721963446218,-525.46478258,0.00013698,2]
[333238342,1721963446229,-500.0,0.00013698,2]
[333238343,1721963446239,-525.46478258,0.00013698,2]
[333238344,1721963446250,-525.46478258,0.00013698,2]
[333238345,1721963446259,-500.0,0.00013698,2]
[333238346,1721963446268,-355.29695514,0.00013698,2]
[333238347,1721963446279,-525.46478258,0.00013698,2]
[333238348,1721963446291,-525.46478258,0.00013698,2]
[333238349,1721963446302,-500.0,0.00013698,2]
[333238350,1721963446312,-525.46478258,0.00013698,2]
[333238351,1721963446324,-500.0,0.00013698,2]
[333238352,1721963446334,-525.46478258,0.00013698,2]
[333238353,1721963446344,-525.46478258,0.00013698,2]
[333238354,1721963446353,-525.46478258,0.00013698,2]
[333238355,1721963446363,-500.0,0.00013698,2]
[333238356,1721963446374,-500.0,0.00013698,2]
[333238357,1721963446387,-500.0,0.00013698,2]
[333238358,1721963446398,-500.0,0.00013698,2]
[333238359,1721963446408,-500.0,0.00013698,2]
[333238360,1721963446418,-500.0,0.00013698,2]
[333238361,1721963446429,-500.0,0.00013698,2]
[333238362,1721963446440,-500.0,0.00013698,2]
[333238363,1721963446449,-517.55401917,0.00013698,2]
[333238364,1721963446460,-500.0,0.00013698,2]
[333238365,1721963446470,-381.04949065,0.00013698,2]
[333238366,1721963446480,-416.10472327,0.00013698,2]
[333238367,1721963446490,-500.0,0.00013698,2]
[333238368,1721963446500,-500.0,0.00013698,2]
[333238369,1721963446511,-502.47986219,0.00013698,2]
[333238370,1721963446522,-500.0,0.00013698,2]
[333238371,1721963446534,-300.0,0.00013698,2]
[333238372,1721963446544,-483.0125449,0.00013698,2]
[333238373,1721963446556,-505.48432505,0.00013698,2]
[333238374,1721963446567,-507.07207965,0.00013698,2]
[333238375,1721963446578,-9330.0454592,0.00013699,2]
[333238376,1721963446590,-1061.935976,0.00013699,2]
[333238377,1721963446602,-3000.0,0.00013699,2]
[333238378,1721963446612,-150.112233,0.000137,2]
[333238379,1721963446622,-153.0,0.00013736,2]
[333238380,1721963446633,-151.0,0.00013872,2]
[333238381,1721963446644,-500.0,0.00013899,2]
[333238382,1721963446655,-221.118114,0.00013899,2]
[333238383,1721963446666,-561.886476,0.00013899,2]
[333238384,1721963446675,-561.886476,0.00013899,2]
[333238385,1721963446686,-1428.056274,0.00013899,2]
[333238386,1721963446695,-1428.056274,0.00013899,2]
[333238387,1721963446705,-151.0,0.00013899,2]
[333238388,1721963446715,-229.9727084,0.00013899,2]
[333238389,1721963446725,-500.0,0.00013899,2]
[333238390,1721963446735,-159.629714,0.0001396,2]
[333238391,1721963446745,-500.0,0.0001396,2]
[333238392,1721963446755,-500.0,0.0001396,2]
[333238393,1721963446765,-500.0,0.00013961,2]
[333238394,1721963446775,-500.0,0.00013961,2]
[333238395,1721963446784,-500.0,0.00013961,2]
[333238396,1721963446794,-500.0,0.00013961,2]
[333238397,1721963446804,-500.0,0.00013961,2]
[333238398,1721963446814,-500.0,0.00013961,2]
[333238399,1721963446824,-434.38089119,0.00013961,2]
[333238400,1721963446834,-500.0,0.00013961,2]
[333238401,1721963446843,-500.0,0.00013961,2]
[333238402,1721963446854,-303.66313787,0.00013961,2]
[333238403,1721963446863,-937.508423,0.00013961,2]
[333238404,1721963446873,-937.508423,0.00013961,2]
[333238405,1721963446883,-214.875887,0.00013961,2]
[333238406,1721963446895,-214.875887,0.00013961,2]
[333238407,1721963446905,-523.811806,0.00013961,2]